Workbook

Sheet Sheet1
A1: 172.3682982 | B1: 62.60750979 | C1: =$K$1*A1+$K$2 -> 0 | D1: =ABS(B1-C1) -> 62.60750979 | F1: 148 | G1: =$K$1*F1+$K$2 -> 0 | H1: gap | I1: 기울기 | J1: w1 | K1: 0 | L1: m1(+) | N1: w1
A2: 166.8645233 | B2: 62.29968562 | C2: =$K$1*A2+$K$2 -> 0 | D2: =ABS(B2-C2) -> 62.29968562 | F2: =F1+$H$2 -> 148.18 | G2: =$K$1*F2+$K$2 -> 0 | H2: 0.18 | I2: 절편 | J2: w2 | K2: 0 | L2: m2(-) | N2: w2
A3: 172.328108 | B3: 63.21308172 | C3: 0 | D3: 63.21308172 | F3: =F2+$H$2 -> 148.36 | G3: 0
A4: 161.4783973 | B4: 55.64593388 | C4: 0 | D4: 55.64593388 | F4: 148.54 | G4: 0 | J4: sum | K4: 50000
A5: 168.633247 | B5: 60.61743026 | C5: 0 | D5: 60.61743026 | F5: 148.72 | G5: 0 | J5: sum0 | K5: =SUM(D:D) -> 11736.39317
A6: 171.2471098 | B6: 64.75694032 | C6: 0 | D6: 64.75694032 | F6: 148.9 | G6: 0
A7: 163.7538081 | B7: 57.15056336 | C7: 0 | D7: 57.15056336 | F7: 149.08 | G7: 0
A8: 162.1514958 | B8: 58.48405033 | C8: 0 | D8: 58.48405033 | F8: 149.26 | G8: 0
A9: 155.267306 | B9: 55.38753543 | C9: 0 | D9: 55.38753543 | F9: 149.44 | G9: 0
A10: 176.1391872 | B10: 63.93077855 | C10: 0 | D10: 63.93077855 | F10: 149.62 | G10: 0
A11: 164.452427 | B11: 56.38935533 | C11: 0 | D11: 56.38935533 | F11: 149.8 | G11: 0
A12: 168.4683627 | B12: 59.87233754 | C12: 0 | D12: 59.87233754 | F12: 149.98 | G12: 0
A13: 152.3827797 | B13: 49.62684668 | C13: 0 | D13: 49.62684668 | F13: 150.16 | G13: 0
A14: 152.5514978 | B14: 51.07298225 | C14: 0 | D14: 51.07298225 | F14: 150.34 | G14: 0
A15: 153.5206443 | B15: 50.76577585 | C15: 0 | D15: 50.76577585 | F15: 150.52 | G15: 0
A16: 172.2991151 | B16: 64.80423949 | C16: 0 | D16: 64.80423949 | F16: 150.7 | G16: 0
A17: 176.8107229 | B17: 69.93818408 | C17: 0 | D17: 69.93818408 | F17: 150.88 | G17: 0
A18: 161.9635338 | B18: 56.55543819 | C18: 0 | D18: 56.55543819 | F18: 151.06 | G18: 0
A19: 174.2738897 | B19: 64.62771619 | C19: 0 | D19: 64.62771619 | F19: 151.24 | G19: 0
A20: 173.4826201 | B20: 69.23034515 | C20: 0 | D20: 69.23034515 | F20: 151.42 | G20: 0
A21: 167.1009403 | B21: 60.62217166 | C21: 0 | D21: 60.62217166 | F21: 151.6 | G21: 0
A22: 161.3235372 | B22: 55.90610084 | C22: 0 | D22: 55.90610084 | F22: 151.78 | G22: 0 | J22: 키 | K22: 몸무게
A23: 169.2463428 | B23: 58.63022126 | C23: 0 | D23: 58.63022126 | F23: 151.96 | G23: 0 | J23: 155 | K23: =$K$1*J23+$K$2 -> 0
A24: 164.8264951 | B24: 61.01878412 | C24: 0 | D24: 61.01878412 | F24: 152.14 | G24: 0 | J24: 159 | K24: =$K$1*J24+$K$2 -> 0
A25: 178.5219866 | B25: 70.13029602 | C25: 0 | D25: 70.13029602 | F25: 152.32 | G25: 0 | J25: 167 | K25: 0
A26: 168.0485004 | B26: 59.73559626 | C26: 0 | D26: 59.73559626 | F26: 152.5 | G26: 0 | J26: 170 | K26: 0
A27: 175.1909333 | B27: 66.16541511 | C27: 0 | D27: 66.16541511 | F27: 152.68 | G27: 0 | J27: 178 | K27: 0
A28: 177.107107 | B28: 66.34253193 | C28: 0 | D28: 66.34253193 | F28: 152.86 | G28: 0
A29: 158.0611664 | B29: 57.94546397 | C29: 0 | D29: 57.94546397 | F29: 153.04 | G29: 0
A30: 155.0241655 | B30: 50.42685145 | C30: 0 | D30: 50.42685145 | F30: 153.22 | G30: 0
A31: 158.0793411 | B31: 53.49289023 | C31: 0 | D31: 53.49289023 | F31: 153.4 | G31: 0
A32: 174.0695733 | B32: 68.57450863 | C32: 0 | D32: 68.57450863 | F32: 153.58 | G32: 0
A33: 169.4245344 | B33: 63.70221185 | C33: 0 | D33: 63.70221185 | F33: 153.76 | G33: 0
A34: 155.6050247 | B34: 52.99096747 | C34: 0 | D34: 52.99096747 | F34: 153.94 | G34: 0
A35: 178.1019956 | B35: 67.93927115 | C35: 0 | D35: 67.93927115 | F35: 154.12 | G35: 0
A36: 157.427761 | B36: 54.36527586 | C36: 0 | D36: 54.36527586 | F36: 154.3 | G36: 0
A37: 168.0368954 | B37: 62.43137072 | C37: 0 | D37: 62.43137072 | F37: 154.48 | G37: 0
A38: 158.6143202 | B38: 56.55741383 | C38: 0 | D38: 56.55741383 | F38: 154.66 | G38: 0
A39: 164.6680766 | B39: 63.38774449 | C39: 0 | D39: 63.38774449 | F39: 154.84 | G39: 0
A40: 151.8642873 | B40: 50.6217148 | C40: 0 | D40: 50.6217148 | F40: 155.02 | G40: 0
A41: 166.041804 | B41: 57.20611578 | C41: 0 | D41: 57.20611578 | F41: 155.2 | G41: 0
A42: 153.3440441 | B42: 49.9454561 | C42: 0 | D42: 49.9454561 | F42: 155.38 | G42: 0
A43: 171.4055139 | B43: 63.01771664 | C43: 0 | D43: 63.01771664 | F43: 155.56 | G43: 0
A44: 160.0305194 | B44: 53.02482031 | C44: 0 | D44: 53.02482031 | F44: 155.74 | G44: 0
A45: 157.3015648 | B45: 52.8914306 | C45: 0 | D45: 52.8914306 | F45: 155.92 | G45: 0
A46: 174.5549387 | B46: 66.33385928 | C46: 0 | D46: 66.33385928 | F46: 156.1 | G46: 0
A47: 151.160987 | B47: 50.9943322 | C47: 0 | D47: 50.9943322 | F47: 156.28 | G47: 0
A48: 177.5465745 | B48: 65.50734342 | C48: 0 | D48: 65.50734342 | F48: 156.46 | G48: 0
A49: 162.3972327 | B49: 59.53555602 | C49: 0 | D49: 59.53555602 | F49: 156.64 | G49: 0
A50: 167.4764961 | B50: 57.90165379 | C50: 0 | D50: 57.90165379 | F50: 156.82 | G50: 0
A51: 150.9999257 | B51: 51.54696122 | C51: 0 | D51: 51.54696122 | F51: 157 | G51: 0
A52: 178.0013198 | B52: 71.25170681 | C52: 0 | D52: 71.25170681 | F52: 157.18 | G52: 0
A53: 153.6286122 | B53: 51.31396838 | C53: 0 | D53: 51.31396838 | F53: 157.36 | G53: 0
A54: 152.8069586 | B54: 51.4294053 | C54: 0 | D54: 51.4294053 | F54: 157.54 | G54: 0
A55: 177.2065097 | B55: 68.40525214 | C55: 0 | D55: 68.40525214 | F55: 157.72 | G55: 0
A56: 157.9523724 | B56: 56.86563021 | C56: 0 | D56: 56.86563021 | F56: 157.9 | G56: 0
A57: 160.014258 | B57: 54.10163676 | C57: 0 | D57: 54.10163676 | F57: 158.08 | G57: 0
A58: 151.7133182 | B58: 49.02060796 | C58: 0 | D58: 49.02060796 | F58: 158.26 | G58: 0
A59: 150.2836686 | B59: 47.36601726 | C59: 0 | D59: 47.36601726 | F59: 158.44 | G59: 0
A60: 151.9260997 | B60: 48.90245719 | C60: 0 | D60: 48.90245719 | F60: 158.62 | G60: 0
A61: 162.2914749 | B61: 57.32073798 | C61: 0 | D61: 57.32073798 | F61: 158.8 | G61: 0
A62: 170.8313173 | B62: 61.96477092 | C62: 0 | D62: 61.96477092 | F62: 158.98 | G62: 0
A63: 159.9530822 | B63: 57.49461851 | C63: 0 | D63: 57.49461851 | F63: 159.16 | G63: 0
A64: 157.4176186 | B64: 51.08763809 | C64: 0 | D64: 51.08763809 | F64: 159.34 | G64: 0
A65: 167.9163176 | B65: 64.55600539 | C65: 0 | D65: 64.55600539 | F65: 159.52 | G65: 0
A66: 157.265448 | B66: 50.83306465 | C66: =$K$1*A66+$K$2 -> 0 | D66: =ABS(B66-C66) -> 50.83306465 | F66: 159.7 | G66: =$K$1*F66+$K$2 -> 0
A67: 150.1551801 | B67: 51.16122675 | C67: 0 | D67: 51.16122675 | F67: =F66+$H$2 -> 159.88 | G67: 0
A68: 179.8907965 | B68: 66.67654801 | C68: 0 | D68: 66.67654801 | F68: 160.06 | G68: 0
A69: 166.0635906 | B69: 64.35111253 | C69: 0 | D69: 64.35111253 | F69: 160.24 | G69: 0
A70: 163.5889524 | B70: 55.02575408 | C70: 0 | D70: 55.02575408 | F70: 160.42 | G70: 0
A71: 174.049142 | B71: 68.95006892 | C71: 0 | D71: 68.95006892 | F71: 160.6 | G71: 0
A72: 157.7782506 | B72: 57.56752578 | C72: 0 | D72: 57.56752578 | F72: 160.78 | G72: 0
A73: 172.6268488 | B73: 67.6678283 | C73: 0 | D73: 67.6678283 | F73: 160.96 | G73: 0
A74: 152.8438228 | B74: 49.87952643 | C74: 0 | D74: 49.87952643 | F74: 161.14 | G74: 0
A75: 169.0128976 | B75: 62.43117233 | C75: 0 | D75: 62.43117233 | F75: 161.32 | G75: 0
A76: 157.4813479 | B76: 53.63150571 | C76: 0 | D76: 53.63150571 | F76: 161.5 | G76: 0
A77: 155.2183968 | B77: 48.79918565 | C77: 0 | D77: 48.79918565 | F77: 161.68 | G77: 0
A78: 163.5408014 | B78: 60.11796437 | C78: 0 | D78: 60.11796437 | F78: 161.86 | G78: 0
A79: 151.6431266 | B79: 51.13088037 | C79: 0 | D79: 51.13088037 | F79: 162.04 | G79: 0
A80: 178.3702058 | B80: 66.92271732 | C80: 0 | D80: 66.92271732 | F80: 162.22 | G80: 0
A81: 168.1692892 | B81: 63.8247633 | C81: 0 | D81: 63.8247633 | F81: 162.4 | G81: 0
A82: 174.6593803 | B82: 67.49940836 | C82: 0 | D82: 67.49940836 | F82: 162.58 | G82: 0
A83: 172.7552587 | B83: 67.35031511 | C83: 0 | D83: 67.35031511 | F83: 162.76 | G83: 0
A84: 167.7836913 | B84: 58.03429616 | C84: 0 | D84: 58.03429616 | F84: 162.94 | G84: 0
A85: 157.5293308 | B85: 56.63681392 | C85: 0 | D85: 56.63681392 | F85: 163.12 | G85: 0
A86: 150.6478018 | B86: 46.68525896 | C86: 0 | D86: 46.68525896 | F86: 163.3 | G86: 0
A87: 152.3834735 | B87: 48.52746865 | C87: 0 | D87: 48.52746865 | F87: 163.48 | G87: 0
A88: 156.0294217 | B88: 52.46331299 | C88: 0 | D88: 52.46331299 | F88: 163.66 | G88: 0
A89: 156.0670763 | B89: 53.0564192 | C89: 0 | D89: 53.0564192 | F89: 163.84 | G89: 0
A90: 176.4230579 | B90: 66.9296022 | C90: 0 | D90: 66.9296022 | F90: 164.02 | G90: 0
A91: 164.7807008 | B91: 57.26845781 | C91: 0 | D91: 57.26845781 | F91: 164.2 | G91: 0
A92: 151.3837641 | B92: 53.09317546 | C92: 0 | D92: 53.09317546 | F92: 164.38 | G92: 0
A93: 178.2698303 | B93: 72.07320173 | C93: 0 | D93: 72.07320173 | F93: 164.56 | G93: 0
A94: 172.370891 | B94: 67.02265065 | C94: 0 | D94: 67.02265065 | F94: 164.74 | G94: 0
A95: 153.4186202 | B95: 54.02158333 | C95: 0 | D95: 54.02158333 | F95: 164.92 | G95: 0
A96: 155.0918359 | B96: 48.73572792 | C96: 0 | D96: 48.73572792 | F96: 165.1 | G96: 0
A97: 175.3436476 | B97: 64.272915 | C97: 0 | D97: 64.272915 | F97: 165.28 | G97: 0
A98: 179.3457931 | B98: 71.14909768 | C98: 0 | D98: 71.14909768 | F98: 165.46 | G98: 0
A99: 155.9876615 | B99: 55.9570355 | C99: 0 | D99: 55.9570355 | F99: 165.64 | G99: 0
A100: 176.367504 | B100: 65.54568123 | C100: 0 | D100: 65.54568123 | F100: 165.82 | G100: 0
A101: 170.2133328 | B101: 65.68877357 | C101: =$K$1*A101+$K$2 -> 0 | D101: =ABS(B101-C101) -> 65.68877357 | F101: 166 | G101: =$K$1*F101+$K$2 -> 0
A102: 163.6710066 | B102: 62.08100567 | C102: 0 | D102: 62.08100567 | F102: 166.18 | G102: 0
A103: 169.3970042 | B103: 59.02178365 | C103: 0 | D103: 59.02178365 | F103: 166.36 | G103: 0
A104: 157.3933858 | B104: 56.99954492 | C104: 0 | D104: 56.99954492 | F104: 166.54 | G104: 0
A105: 152.5224406 | B105: 47.78503373 | C105: 0 | D105: 47.78503373 | F105: 166.72 | G105: 0
A106: 152.1385235 | B106: 49.8198586 | C106: 0 | D106: 49.8198586 | F106: 166.9 | G106: 0
A107: 164.7745782 | B107: 61.98388617 | C107: 0 | D107: 61.98388617 | F107: 167.08 | G107: 0
A108: 168.3208483 | B108: 61.17365503 | C108: 0 | D108: 61.17365503 | F108: 167.26 | G108: 0
A109: 153.6332756 | B109: 52.41650389 | C109: 0 | D109: 52.41650389 | F109: 167.44 | G109: 0
A110: 157.009086 | B110: 53.48707772 | C110: 0 | D110: 53.48707772 | F110: 167.62 | G110: 0
A111: 162.4670631 | B111: 58.55249273 | C111: 0 | D111: 58.55249273 | F111: 167.8 | G111: 0
A112: 152.2700089 | B112: 46.71982045 | C112: 0 | D112: 46.71982045 | F112: 167.98 | G112: 0
A113: 171.6268927 | B113: 68.39815406 | C113: 0 | D113: 68.39815406 | F113: 168.16 | G113: 0
A114: 161.0121864 | B114: 54.34102159 | C114: 0 | D114: 54.34102159 | F114: 168.34 | G114: 0
A115: 157.0398885 | B115: 53.53595609 | C115: 0 | D115: 53.53595609 | F115: 168.52 | G115: 0
A116: 150.3297347 | B116: 46.10268505 | C116: 0 | D116: 46.10268505 | F116: 168.7 | G116: 0
A117: 156.3030964 | B117: 54.39761868 | C117: 0 | D117: 54.39761868 | F117: 168.88 | G117: 0
A118: 162.3460668 | B118: 56.54002822 | C118: 0 | D118: 56.54002822 | F118: 169.06 | G118: 0
A119: 162.2772342 | B119: 57.84694273 | C119: 0 | D119: 57.84694273 | F119: 169.24 | G119: 0
A120: 166.5576428 | B120: 63.15783272 | C120: 0 | D120: 63.15783272 | F120: 169.42 | G120: 0
A121: 174.1804415 | B121: 66.35813768 | C121: 0 | D121: 66.35813768 | F121: 169.6 | G121: 0
A122: 159.6777195 | B122: 56.18187262 | C122: 0 | D122: 56.18187262 | F122: 169.78 | G122: 0
A123: 166.1820298 | B123: 60.37955462 | C123: 0 | D123: 60.37955462 | F123: 169.96 | G123: 0
A124: 152.9801005 | B124: 49.62862398 | C124: 0 | D124: 49.62862398 | F124: 170.14 | G124: 0
A125: 153.4962326 | B125: 49.37846185 | C125: 0 | D125: 49.37846185 | F125: 170.32 | G125: 0
A126: 167.1428865 | B126: 64.30731147 | C126: 0 | D126: 64.30731147 | F126: 170.5 | G126: 0
A127: 175.9759551 | B127: 64.30862716 | C127: 0 | D127: 64.30862716 | F127: 170.68 | G127: 0
A128: 174.592225 | B128: 68.74300505 | C128: 0 | D128: 68.74300505 | F128: 170.86 | G128: 0
A129: 169.2065245 | B129: 65.80951282 | C129: 0 | D129: 65.80951282 | F129: 171.04 | G129: 0
A130: 169.3460602 | B130: 61.62037625 | C130: 0 | D130: 61.62037625 | F130: 171.22 | G130: 0
A131: 173.0994397 | B131: 68.10064734 | C131: 0 | D131: 68.10064734 | F131: =F130+$H$2 -> 171.4 | G131: 0
A132: 154.3578833 | B132: 49.89177799 | C132: 0 | D132: 49.89177799 | F132: 171.58 | G132: 0
A133: 157.9861218 | B133: 52.15540687 | C133: 0 | D133: 52.15540687 | F133: 171.76 | G133: 0
A134: 166.3604826 | B134: 60.71272364 | C134: 0 | D134: 60.71272364 | F134: 171.94 | G134: 0
A135: 158.2116634 | B135: 58.18785016 | C135: 0 | D135: 58.18785016 | F135: 172.12 | G135: 0
A136: 158.2096928 | B136: 56.37350812 | C136: 0 | D136: 56.37350812 | F136: 172.3 | G136: 0
A137: 173.2285792 | B137: 64.68196045 | C137: 0 | D137: 64.68196045 | F137: 172.48 | G137: 0
A138: 158.728146 | B138: 57.19012951 | C138: 0 | D138: 57.19012951 | F138: 172.66 | G138: 0
A139: 166.1905557 | B139: 60.97913925 | C139: 0 | D139: 60.97913925 | F139: 172.84 | G139: 0
A140: 170.0490206 | B140: 61.38015595 | C140: 0 | D140: 61.38015595 | F140: 173.02 | G140: 0
A141: 160.0462013 | B141: 55.63445214 | C141: 0 | D141: 55.63445214 | F141: 173.2 | G141: 0
A142: 162.4597925 | B142: 53.91945916 | C142: 0 | D142: 53.91945916 | F142: 173.38 | G142: 0
A143: 161.1327964 | B143: 58.81120291 | C143: 0 | D143: 58.81120291 | F143: 173.56 | G143: 0
A144: 166.745984 | B144: 62.93652495 | C144: 0 | D144: 62.93652495 | F144: 173.74 | G144: 0
A145: 150.270043 | B145: 50.29964785 | C145: 0 | D145: 50.29964785 | F145: 173.92 | G145: 0
A146: 164.0349144 | B146: 55.962736 | C146: 0 | D146: 55.962736 | F146: 174.1 | G146: 0
A147: 171.3538152 | B147: 61.42683121 | C147: 0 | D147: 61.42683121 | F147: 174.28 | G147: 0
A148: 163.13945 | B148: 55.3053659 | C148: 0 | D148: 55.3053659 | F148: 174.46 | G148: 0
A149: 157.4499089 | B149: 52.02774345 | C149: 0 | D149: 52.02774345 | F149: 174.64 | G149: 0
A150: 165.4017538 | B150: 59.21083919 | C150: 0 | D150: 59.21083919 | F150: 174.82 | G150: 0
A151: 154.3877918 | B151: 52.56896567 | C151: 0 | D151: 52.56896567 | F151: 175 | G151: 0
A152: 167.0370358 | B152: 58.31613879 | C152: 0 | D152: 58.31613879 | F152: 175.18 | G152: 0
A153: 161.8543535 | B153: 57.93936608 | C153: 0 | D153: 57.93936608 | F153: 175.36 | G153: 0
A154: 168.9773029 | B154: 59.21660053 | C154: 0 | D154: 59.21660053 | F154: 175.54 | G154: 0
A155: 161.9876558 | B155: 55.83447934 | C155: 0 | D155: 55.83447934 | F155: 175.72 | G155: 0
A156: 164.2151088 | B156: 61.18815245 | C156: 0 | D156: 61.18815245 | F156: 175.9 | G156: 0
A157: 155.4706818 | B157: 48.9165525 | C157: 0 | D157: 48.9165525 | F157: 176.08 | G157: 0
A158: 162.6473039 | B158: 61.47489589 | C158: 0 | D158: 61.47489589 | F158: 176.26 | G158: 0
A159: 175.1250869 | B159: 69.00176728 | C159: 0 | D159: 69.00176728 | F159: 176.44 | G159: 0
A160: 163.4187859 | B160: 58.8134326 | C160: 0 | D160: 58.8134326 | F160: 176.62 | G160: 0
A161: 157.0049483 | B161: 51.25932915 | C161: 0 | D161: 51.25932915 | F161: 176.8 | G161: 0
A162: 164.7662491 | B162: 59.94813377 | C162: 0 | D162: 59.94813377 | F162: 176.98 | G162: 0
A163: 178.9905149 | B163: 72.95629944 | C163: 0 | D163: 72.95629944 | F163: 177.16 | G163: 0
A164: 151.3619345 | B164: 48.51853288 | C164: 0 | D164: 48.51853288 | F164: 177.34 | G164: 0
A165: 166.8819577 | B165: 61.11943475 | C165: =$K$1*A165+$K$2 -> 0 | D165: =ABS(B165-C165) -> 61.11943475 | F165: 177.52 | G165: =$K$1*F165+$K$2 -> 0
A166: 179.1573805 | B166: 66.26813941 | C166: 0 | D166: 66.26813941 | F166: 177.7 | G166: 0
A167: 177.9931194 | B167: 71.10846916 | C167: 0 | D167: 71.10846916 | F167: 177.88 | G167: 0
A168: 167.7271718 | B168: 63.15646665 | C168: 0 | D168: 63.15646665 | F168: 178.06 | G168: 0
A169: 152.2452646 | B169: 52.85517034 | C169: 0 | D169: 52.85517034 | F169: 178.24 | G169: 0
A170: 150.1126903 | B170: 49.70213172 | C170: 0 | D170: 49.70213172 | F170: 178.42 | G170: 0
A171: 150.76083 | B171: 53.04492514 | C171: 0 | D171: 53.04492514 | F171: 178.6 | G171: 0
A172: 170.1658648 | B172: 61.79620606 | C172: 0 | D172: 61.79620606 | F172: 178.78 | G172: 0
A173: 151.9571739 | B173: 51.81060456 | C173: 0 | D173: 51.81060456 | F173: 178.96 | G173: 0
A174: 157.3929209 | B174: 55.24541801 | C174: 0 | D174: 55.24541801 | F174: 179.14 | G174: 0
A175: 155.1403266 | B175: 51.43551421 | C175: 0 | D175: 51.43551421 | F175: 179.32 | G175: 0
A176: 169.2981309 | B176: 64.14574526 | C176: 0 | D176: 64.14574526 | F176: 179.5 | G176: 0
A177: 171.5987402 | B177: 61.22895608 | C177: 0 | D177: 61.22895608 | F177: 179.68 | G177: 0
A178: 161.2275642 | B178: 58.16209612 | C178: 0 | D178: 58.16209612 | F178: 179.86 | G178: 0
A179: 163.1970388 | B179: 55.32198723 | C179: 0 | D179: 55.32198723 | F179: 180.04 | G179: 0
A180: 153.7128371 | B180: 50.51374037 | C180: 0 | D180: 50.51374037 | F180: 180.22 | G180: 0
A181: 168.4697682 | B181: 64.96511489 | C181: 0 | D181: 64.96511489 | F181: 180.4 | G181: 0
A182: 167.3148626 | B182: 62.02834367 | C182: 0 | D182: 62.02834367 | F182: 180.58 | G182: 0
A183: 166.2151462 | B183: 61.91399844 | C183: 0 | D183: 61.91399844 | F183: 180.76 | G183: 0
A184: 164.9676007 | B184: 62.06926504 | C184: 0 | D184: 62.06926504 | F184: 180.94 | G184: 0
A185: 156.5888125 | B185: 56.91001599 | C185: 0 | D185: 56.91001599 | F185: 181.12 | G185: 0
A186: 151.8218082 | B186: 48.66038036 | C186: 0 | D186: 48.66038036 | F186: 181.3 | G186: 0
A187: 159.6975785 | B187: 59.17576922 | C187: 0 | D187: 59.17576922 | F187: 181.48 | G187: 0
A188: 162.5887889 | B188: 57.65816438 | C188: 0 | D188: 57.65816438 | F188: 181.66 | G188: 0
A189: 161.6931778 | B189: 55.9823802 | C189: 0 | D189: 55.9823802 | F189: 181.84 | G189: 0
A190: 166.3841432 | B190: 57.93984727 | C190: 0 | D190: 57.93984727 | F190: 182.02 | G190: 0
A191: 158.3660156 | B191: 58.20413233 | C191: 0 | D191: 58.20413233 | F191: 182.2 | G191: 0
A192: 159.0715188 | B192: 56.53169071 | C192: 0 | D192: 56.53169071 | F192: 182.38 | G192: 0
A193: 176.2389189 | B193: 66.28708545 | C193: 0 | D193: 66.28708545 | F193: 182.56 | G193: 0
A194: 173.1063598 | B194: 65.19107649 | C194: 0 | D194: 65.19107649 | F194: 182.74 | G194: 0
A195: 151.1608869 | B195: 47.9570929 | C195: 0 | D195: 47.9570929 | F195: =F194+$H$2 -> 182.92 | G195: 0
A196: 174.8796576 | B196: 69.30562785 | C196: 0 | D196: 69.30562785 | F196: 183.1 | G196: 0
A197: 174.4008404 | B197: 70.54534847 | C197: 0 | D197: 70.54534847 | F197: 183.28 | G197: 0
A198: 179.5617002 | B198: 73.94071023 | C198: 0 | D198: 73.94071023 | F198: 183.46 | G198: 0
A199: 176.2413722 | B199: 69.33088981 | C199: 0 | D199: 69.33088981 | F199: 183.64 | G199: 0
A200: 163.4458226 | B200: 54.73282961 | C200: 0 | D200: 54.73282961 | F200: 183.82 | G200: 0
